bitfinex/quotes_SOLUSD_20250717
["timestamp","ask_amount","ask_price","bid_price","bid_amount"]
[1752716914199,0.7,170.71,170.64,26.0]
[1752716914200,0.7,170.71,170.64,61.86]
[1752716914405,12.32604671,170.68,170.64,26.0]
[1752716914798,0.7,170.71,170.64,26.67]
[1752716915099,12.32604671,170.66,170.62,0.06]
[1752716915295,0.7,170.69,170.63,26.0]
[1752716915499,0.7,170.69,170.62,0.73]
[1752716915706,5.85891727,170.68,170.64,26.0]
[1752716915902,20.50260675,170.71,170.63,26.0]
[1752716916131,12.32604671,170.66,170.64,26.0]
[1752716916320,12.32604671,170.66,170.65,26.0]
[1752716916519,0.7,170.7,170.65,26.0]
[1752716916700,12.32604671,170.66,170.65,26.0]
[1752716916905,0.7,170.69,170.64,26.0]
[1752716917119,0.7,170.69,170.62,0.06]
[1752716917120,12.32604671,170.67,170.65,26.0]
[1752716917310,0.7,170.68,170.65,26.0]
[1752716917515,12.32604671,170.66,170.65,26.0]
[1752716917702,18.18593711,170.66,170.64,26.0]
[1752716917897,18.18533384,170.67,170.65,26.0]
[1752716918123,12.32604671,170.66,170.65,26.0]
[1752716918524,5.85892404,170.68,170.65,26.0]
[1752716918726,12.32604671,170.66,170.62,0.06]
[1752716918931,0.7,170.67,170.62,0.06]
[1752716919135,12.32604671,170.65,170.62,0.06]
[1752716919312,12.32604671,170.65,170.63,26.0]
[1752716919818,6.56029067,170.64,170.62,0.06]
[1752716920008,18.18607352,170.65,170.62,0.06]
[1752716920422,5.86002681,170.65,170.62,0.06]
[1752716920625,12.32604671,170.64,170.62,0.06]
[1752716921039,8.2414016,170.64,170.62,0.06]
[1752716921235,0.7,170.64,170.62,0.06]
[1752716921438,5.86002681,170.65,170.62,0.06]
[1752716921635,0.7,170.63,170.62,0.06]
[1752716921844,14.80203572,170.63,170.62,0.06]
[1752716922147,6.56063412,170.63,170.62,0.06]
[1752716922321,6.56063412,170.63,170.51,6.1957]
[1752716922322,29.45362102,170.63,170.51,0.67]
[1752716922526,0.7,170.62,170.51,0.67]
[1752716922831,5.86063412,170.63,170.56,8.2414016]
[1752716923036,5.86063412,170.63,170.55,0.67]
[1752716923221,5.86063412,170.63,170.57,26.0]
[1752716923423,8.2414016,170.61,170.57,26.0]
[1752716923738,14.10362776,170.59,170.57,26.0]
[1752716923969,5.86222616,170.59,170.57,26.0]
[1752716924247,8.2414016,170.58,170.54,26.0]
[1752716924462,6.56222616,170.59,170.52,0.67]
[1752716924627,6.56222616,170.59,170.52,26.67]
[1752716924826,6.56222616,170.59,170.51,43.03]
[1752716924827,0.7,170.58,170.51,6.61]
[1752716925023,0.7,170.58,170.5,8.2414016]
[1752716925222,8.2414016,170.56,170.51,8.9114016]
[1752716925440,0.7,170.58,170.48,1.6097]
[1752716925441,0.7,170.58,170.52,0.67]
[1752716925653,0.7,170.58,170.49,0.67]
[1752716925830,5.86269566,170.57,170.49,0.67]
[1752716926362,20.51943482,170.57,170.49,0.67]
[1752716926525,8.2414016,170.54,170.49,0.67]
[1752716926726,20.51943482,170.57,170.45,16.78468397]
[1752716926727,0.7,170.56,170.45,0.67]
[1752716927451,8.2414016,170.51,170.45,0.67]
[1752716927656,26.97703482,170.57,170.45,0.67]
[1752716927853,5.86372698,170.54,170.47,8.2414016]
[1752716928056,8.2414016,170.52,170.47,0.67]
[1752716928357,0.7,170.51,170.41,8.9114016]
[1752716928543,8.2414016,170.47,170.42,8.2414016]
[1752716928747,8.2414016,170.48,170.43,0.67]
[1752716928948,8.2414016,170.47,170.45,26.0]
[1752716929138,57.08304444,170.54,170.34,16.63912437]
[1752716929345,8.2414016,170.45,170.4,8.9114016]
[1752716929542,8.2414016,170.45,170.35,46.54]
[1752716929543,0.7,170.5,170.46,26.0]
[1752716929740,5.86372698,170.54,170.47,34.9114016]
[1752716930055,14.10481745,170.55,170.52,26.0]
[1752716930259,14.10481745,170.55,170.5,34.2414016]
[1752716930448,5.86341585,170.55,170.51,8.2414016]
[1752716930641,5.8630611,170.56,170.54,26.0]
[1752716930851,0.7,170.62,170.54,26.67]
[1752716931045,18.32861221,170.61,170.58,26.0]
[1752716931353,18.32861221,170.61,170.54,6.028]
[1752716931354,4.22588947,170.6,170.54,6.028]
[1752716931560,8.2414016,170.55,170.52,26.0]
[1752716931735,0.7,170.55,170.52,26.0]
[1752716931936,14.10547243,170.53,170.45,0.67]
[1752716932152,6.56407083,170.53,170.45,0.67]
[1752716932356,8.2414016,170.5,170.48,26.0]
[1752716932581,8.2414016,170.49,170.48,26.0]
[1752716932873,0.7,170.52,170.44,8.2414016]
[1752716933076,12.45769847,170.49,170.42,0.67]
[1752716933359,0.7,170.52,170.43,12.45769847]
[1752716933558,0.7,170.52,170.46,26.0]
[1752716933859,12.45769847,170.47,170.42,0.67]
[1752716934335,12.45769847,170.49,170.46,26.0]
[1752716934760,12.45769847,170.49,170.4,37.17]
[1752716934761,12.45769847,170.47,170.4,37.17]
[1752716935063,12.45769847,170.47,170.44,26.0]
[1752716935239,12.45769847,170.48,170.45,26.0]
[1752716935440,12.45769847,170.48,170.46,26.0]
[1752716935650,0.71,170.5,170.46,26.0]
[1752716935862,5.8657907,170.48,170.43,26.0]
[1752716936068,5.8657907,170.48,170.45,26.0]
[1752716936240,5.86504512,170.51,170.45,26.0]
[1752716936436,6.57338317,170.55,170.48,12.45769847]
[1752716936666,12.45769847,170.52,170.49,26.0]
[1752716936862,12.45769847,170.5,170.48,26.0]
[1752716937162,0.71,170.51,170.48,26.0]
[1752716937769,0.71,170.51,170.46,26.0]
[1752716937964,12.45769847,170.48,170.46,26.0]
[1752716938144,0.71,170.5,170.45,26.0]
[1752716938344,12.45769847,170.47,170.45,26.0]
[1752716938561,6.57510263,170.5,170.46,26.0]
[1752716938768,12.45769847,170.49,170.47,26.0]
[1752716939068,12.45769847,170.49,170.46,0.69]
[1752716939264,12.45769847,170.49,170.44,39.14769847]
[1752716939467,12.45769847,170.47,170.44,26.0]
[1752716939766,0.71,170.46,170.38,2.3566]
[1752716939956,12.45769847,170.43,170.38,20.6834869]
[1752716940267,12.45769847,170.44,170.4,0.69]
[1752716940466,12.45769847,170.43,170.42,26.0]
[1752716940645,5.86688011,170.45,170.42,26.0]
[1752716940963,6.57688011,170.45,170.39,6.3501]
[1752716941147,12.45769847,170.41,170.39,6.3501]
[1752716941351,21.24393789,170.45,170.38,0.06]
[1752716941551,4.22695685,170.44,170.38,0.06]
[1752716941758,6.57688011,170.45,170.4,26.0]
[1752716941951,5.8685446,170.4,170.38,0.06]
[1752716942253,12.45769847,170.39,170.38,0.06]
[1752716942451,13.16769847,170.39,170.38,0.06]
[1752716942653,36.58,170.46,170.38,0.06]
[1752716942654,5.86827875,170.41,170.38,0.06]
[1752716942843,12.45769847,170.4,170.38,0.06]
[1752716943048,12.45769847,170.39,170.38,26.06]
[1752716943249,12.45769847,170.4,170.38,26.06]
[1752716943457,0.71,170.4,170.38,0.06]
[1752716943642,5.86827875,170.41,170.38,0.06]
[1752716943643,13.16769847,170.39,170.38,0.06]
[1752716944046,19.03658748,170.39,170.38,1e-08]
[1752716946058,35.82127145,170.39,170.38,1e-08]
[1752716946266,35.82127145,170.39,170.27,15.441]
[1752716946267,12.45769847,170.3,170.27,14.751]
[1752716946504,12.45769847,170.3,170.25,24.49598836]
[1752716946668,0.71,170.35,170.27,0.69]
[1752716946872,12.45769847,170.35,170.33,26.0]
[1752716947062,13.16769847,170.34,170.24,13.14769847]
[1752716947372,12.45769847,170.3,170.25,26.0]
[1752716947672,12.45769847,170.29,170.25,15.441]
[1752716947869,12.45769847,170.26,170.25,14.751]
[1752716948170,6.5311,170.35,170.25,14.751]
[1752716948171,12.45769847,170.27,170.25,40.751]
[1752716948368,12.45769847,170.28,170.25,40.751]
[1752716948796,21.25955378,170.32,170.25,40.751]
[1752716948959,12.45769847,170.26,170.25,14.751]
[1752716949275,13.16769847,170.26,170.25,14.751]
[1752716949846,0.71,170.26,170.25,14.751]
[1752716950045,19.0410686,170.26,170.25,14.751]
[1752716950265,20.5614686,170.26,170.25,14.751]
[1752716950581,18.3310686,170.26,170.25,14.751]
[1752716950747,5.87337013,170.26,170.25,14.751]
[1752716951068,18.3310686,170.26,170.25,14.751]
[1752716951369,5.87267273,170.29,170.25,14.751]
[1752716951579,12.45769847,170.3,170.26,0.69]
[1752716951770,5.87194562,170.31,170.26,0.69]
[1752716952081,36.54,170.36,170.25,27.20869847]
[1752716952082,18.33056233,170.28,170.25,14.751]
[1752716952275,12.45769847,170.27,170.25,14.751]
[1752716952485,6.58095637,170.33,170.27,26.0]
[1752716952653,36.54,170.36,170.28,26.69]
[1752716952654,5.87026709,170.35,170.28,26.69]
[1752716952979,5.87026709,170.35,170.29,26.69]
[1752716953277,5.87026709,170.35,170.3,12.45769847]
[1752716953477,0.71,170.34,170.29,26.0]
[1752716953652,0.71,170.34,170.26,8.1866]
[1752716953857,12.45769847,170.28,170.27,26.0]
[1752716954483,12.45769847,170.3,170.26,26.0]
[1752716954693,5.87095637,170.33,170.27,26.0]
[1752716954901,0.71,170.32,170.27,26.0]
[1752716955050,5.86992251,170.36,170.29,26.0]
[1752716955256,5.86965773,170.37,170.33,8.27587996]
[1752716955563,8.27587996,170.39,170.33,0.69]
[1752716955873,8.27587996,170.34,170.28,26.0]
[1752716956181,28.81699151,170.39,170.28,26.69]
[1752716956182,0.71,170.36,170.28,26.69]
[1752716956351,0.71,170.36,170.29,26.0]
[1752716956786,0.71,170.36,170.28,26.0]
[1752716957372,8.27587996,170.33,170.28,34.96587996]
[1752716957581,8.27587996,170.34,170.29,0.69]
[1752716957783,8.27587996,170.33,170.28,34.27587996]
[1752716957959,8.27587996,170.35,170.29,8.96587996]
[1752716958161,14.14635716,170.35,170.29,8.96587996]
[1752716958361,5.8704772,170.35,170.29,8.96587996]
[1752716958568,5.86820022,170.41,170.28,26.0]
[1752716958768,0.71,170.4,170.32,8.27587996]
[1752716958966,0.71,170.4,170.33,8.27587996]
[1752716959258,8.27587996,170.38,170.31,0.69]
[1752716959483,8.27587996,170.36,170.32,36.58]
[1752716959667,0.71,170.36,170.32,26.0]
[1752716959867,0.71,170.35,170.28,0.69]
[1752716960060,5.87061171,170.34,170.28,45.52587996]
[1752716960273,5.87061171,170.34,170.28,63.25]
[1752716960580,5.87027775,170.35,170.32,26.0]
[1752716960770,8.27587996,170.36,170.31,8.27587996]
[1752716961076,5.86957797,170.37,170.32,8.96587996]
[1752716961260,8.27587996,170.36,170.32,26.0]
[1752716961455,8.27587996,170.35,170.3,8.96587996]
[1752716961682,0.71,170.35,170.3,62.48]
[1752716962184,20.54352291,170.37,170.3,62.48]
[1752716962185,5.86957797,170.37,170.31,0.69]
[1752716962481,8.27587996,170.35,170.3,26.0]
[1752716962858,5.86957797,170.37,170.3,62.54]
[1752716963058,20.54352291,170.37,170.3,70.81587996]
[1752716963271,20.54352291,170.37,170.3,26.0]
[1752716963479,8.27587996,170.32,170.3,26.0]
[1752716963670,0.71,170.36,170.3,26.0]
[1752716963854,8.27587996,170.33,170.3,26.0]
[1752716964059,5.87026709,170.35,170.3,26.67]
[1752716964279,4.21696246,170.34,170.3,26.73]
[1752716964480,4.2186422,170.33,170.31,0.67]
[1752716964786,5.86960625,170.37,170.32,0.67]
[1752716965092,4.21777253,170.36,170.32,45.40587996]
[1752716965258,4.21777253,170.35,170.33,0.67]
[1752716965460,4.21777253,170.34,170.33,0.67]
[1752716965680,4.21777253,170.34,170.33,8.94587996]
[1752716965881,4.21777253,170.34,170.33,0.67]
[1752716966183,4.21777253,170.34,170.33,63.15]
[1752716966367,4.21777253,170.34,170.33,26.67]
[1752716966567,10.08838424,170.34,170.3,8.33587996]
[1752716966769,4.21777253,170.33,170.31,45.38587996]
[1752716967079,4.22012245,170.32,170.31,63.11]
[1752716967256,4.22012245,170.32,170.31,62.44]
[1752716967456,4.22150386,170.32,170.31,71.38587996]
[1752716967662,4.22150386,170.32,170.31,34.94587996]
[1752716967860,4.22150386,170.32,170.3,0.06]
[1752716968061,14.14674881,170.34,170.31,36.4]
[1752716968280,14.1462199,170.35,170.31,36.4]
[1752716968483,4.22277792,170.34,170.31,36.4]
[1752716968666,8.30587996,170.38,170.32,0.67]
[1752716968871,4.22304973,170.37,170.32,8.94587996]
[1752716969066,4.22304973,170.36,170.31,26.0]
[1752716969267,4.22304973,170.35,170.31,26.0]
[1752716969487,8.27587996,170.32,170.27,14.751]
[1752716969800,8.27587996,170.28,170.27,14.751]
[1752716970093,8.27587996,170.28,170.2,62.34]
[1752716970094,5.87406015,170.24,170.2,62.34]
[1752716970266,5.87406015,170.24,170.21,36.3]
[1752716970774,5.87406015,170.24,170.2,26.0]
[1752716970775,5.87406015,170.24,170.19,0.67]
[1752716970984,5.87406015,170.24,170.19,36.97]
[1752716971168,6.57406015,170.24,170.18,6.5765]
[1752716971500,0.7,170.33,170.24,6.1443]
[1752716971787,8.27587996,170.31,170.25,45.22587996]
[1752716971990,8.27587996,170.28,170.24,68.4043]
[1752716972304,8.27587996,170.28,170.12,237.2]
[1752716972305,8.27587996,170.25,170.19,0.67]
[1752716972488,20.55679547,170.26,170.19,0.67]
[1752716972673,20.55679547,170.26,170.19,8.94587996]
[1752716972873,14.68120884,170.29,170.21,34.27587996]
[1752716973204,8.27587996,170.28,170.23,8.27587996]
[1752716973410,8.27587996,170.28,170.23,44.53587996]
[1752716973570,5.87233542,170.29,170.24,8.94587996]
[1752716973772,5.87233542,170.29,170.25,0.67]
[1752716973967,14.14821538,170.29,170.25,0.67]
[1752716974167,14.14821538,170.29,170.24,8.27587996]
[1752716974370,14.14821538,170.29,170.21,31.87502335]
[1752716974371,8.27587996,170.25,170.21,26.0]
[1752716974674,8.27587996,170.26,170.21,26.67]
[1752716974881,8.27587996,170.25,170.21,26.67]
[1752716975064,0.7,170.28,170.21,26.0]
[1752716975269,5.87233542,170.29,170.22,0.67]
[1752716975477,5.87233542,170.29,170.24,12.49361276]
[1752716975681,5.87233542,170.29,170.25,13.16361276]
[1752716975901,5.87130108,170.32,170.26,13.16361276]
[1752716976069,12.49361276,170.35,170.29,12.49361276]
[1752716976271,18.36387985,170.35,170.29,36.14]
[1752716976471,18.36387985,170.35,170.29,49.30361276]
[1752716976472,12.49361276,170.34,170.29,49.30361276]
[1752716976780,12.49361276,170.33,170.3,36.16]
[1752716976982,0.7,170.34,170.3,36.16]
[1752716977176,12.49361276,170.31,170.26,32.0795]
[1752716977386,12.49361276,170.27,170.23,0.67]
[1752716977578,20.54593483,170.35,170.25,36.12]
[1752716977579,12.49361276,170.29,170.25,36.12]
[1752716977778,12.49361276,170.3,170.26,0.67]
[1752716977974,12.49361276,170.34,170.29,12.49361276]
[1752716978291,12.49361276,170.34,170.29,49.30361276]
[1752716978292,5.87095637,170.33,170.29,49.30361276]
[1752716978493,5.87095637,170.33,170.29,36.81]
[1752716978698,5.87095637,170.33,170.29,49.30361276]
[1752716978894,12.49361276,170.33,170.29,0.67]
[1752716979198,5.8703047,170.35,170.31,12.49361276]
[1752716979694,18.36391746,170.35,170.3,12.49361276]
[1752716979893,6.5703047,170.35,170.29,36.12]
[1752716980195,19.06391746,170.35,170.29,12.49361276]
[1752716980499,19.06391746,170.35,170.3,36.04]
[1752716980500,12.49361276,170.34,170.3,36.04]
[1752716980679,12.49361276,170.34,170.29,12.49361276]
[1752716980880,12.49361276,170.33,170.27,2.2262]
[1752716981077,13.19361276,170.34,170.29,48.51361276]
[1752716981278,0.7,170.34,170.29,48.51361276]
[1752716981579,12.49361276,170.34,170.29,48.51361276]
[1752716981776,5.8703047,170.35,170.3,12.49361276]
[1752716982176,5.86992251,170.36,170.33,26.0]
[1752716982585,12.49361276,170.37,170.33,26.0]
[1752716982586,5.86966784,170.37,170.33,26.0]
[1752716982875,0.03,170.38,170.36,38.49361276]
[1752716983092,29.32306267,170.52,170.34,0.67]
[1752716983093,12.49361276,170.47,170.4,26.0]
[1752716983406,12.49361276,170.47,170.38,1.5508]
[1752716983407,12.49361276,170.45,170.41,26.0]
[1752716983582,0.7,170.47,170.41,61.94]
[1752716983775,12.49361276,170.42,170.41,26.0]
[1752716984298,14.66754607,170.45,170.41,26.0]
[1752716984473,12.49361276,170.42,170.38,35.92]
[1752716984670,12.49361276,170.4,170.36,32.5707]
[1752716984898,12.49361276,170.39,170.36,42.4907]
[1752716985197,12.49361276,170.4,170.35,36.57]
[1752716985371,20.53508565,170.44,170.36,13.16361276]
[1752716985577,12.49361276,170.39,170.34,26.0]
[1752716985790,12.49361276,170.37,170.32,19.09371276]
[1752716986101,12.49361276,170.36,170.32,43.1501]
[1752716986300,12.49361276,170.36,170.32,7.2701]
[1752716986505,12.49361276,170.34,170.32,6.6001]
[1752716986704,12.49361276,170.34,170.31,35.84]
[1752716986995,0.7,170.37,170.31,35.84]
[1752716987198,12.49361276,170.37,170.32,13.16361276]
[1752716987373,12.49361276,170.37,170.33,0.67]
[1752716987577,12.49361276,170.34,170.3,26.67]
[1752716987778,12.49361276,170.34,170.31,35.8]
[1752716988411,5.87095637,170.33,170.31,35.8]
[1752716988710,5.87095637,170.33,170.28,1.5967]
[1752716988908,5.87095637,170.33,170.3,48.29361276]
[1752716989097,5.87095637,170.33,170.3,35.8]
[1752716989292,5.87095637,170.33,170.3,61.8]
[1752716989492,5.87095637,170.33,170.3,26.0]
[1752716989793,14.67272842,170.39,170.32,12.49361276]
[1752716989984,14.67272842,170.39,170.34,12.49361276]
[1752716989985,5.86888901,170.39,170.34,12.49361276]
[1752716990190,5.86888901,170.39,170.34,13.16361276]
[1752716990396,0.03,170.42,170.34,0.67]
[1752716990594,0.03,170.42,170.37,38.49361276]
[1752716990795,0.03,170.42,170.37,74.31361276]
[1752716990992,5.89790488,170.42,170.37,74.31361276]
[1752716991208,12.49361276,170.39,170.35,26.0]
[1752716991399,12.49361276,170.39,170.35,61.8]
[1752716991897,12.49361276,170.4,170.35,26.0]
[1752716992099,13.19361276,170.39,170.35,26.0]
[1752716992298,12.49361276,170.37,170.33,26.0]
[1752716992612,12.49361276,170.34,170.27,43.0161]
[1752716992795,12.49361276,170.32,170.27,55.50971276]
[1752716992998,12.49361276,170.33,170.3,26.0]
[1752716993198,5.87026709,170.35,170.31,13.16361276]
[1752716993516,5.87026709,170.35,170.31,0.67]
[1752716993712,18.36387985,170.35,170.28,0.67]
[1752716993897,18.36387985,170.35,170.3,12.49361276]
[1752716994100,19.02387985,170.35,170.3,38.49361276]
[1752716994290,12.49361276,170.34,170.3,26.0]
[1752716994492,5.86957797,170.37,170.3,26.69]
[1752716994922,12.49361276,170.36,170.31,12.49361276]
[1752716995212,12.49361276,170.32,170.3,26.0]
[1752716995815,0.66,170.32,170.26,12.49361276]
[1752716996004,12.49361276,170.31,170.25,48.19361276]
[1752716996204,13.15361276,170.32,170.26,38.49361276]
[1752716996402,5.8719906,170.3,170.26,26.0]
[1752716996603,12.49361276,170.28,170.24,0.69]
[1752716996920,12.49361276,170.27,170.22,6.5857]
[1752716997096,12.49361276,170.25,170.21,0.75]
[1752716997294,12.49361276,170.26,170.21,13.24361276]
[1752716997508,12.49361276,170.26,170.24,26.0]
[1752716997711,12.49361276,170.27,170.21,13.24361276]
[1752716998019,12.49361276,170.27,170.24,26.0]
[1752716998197,12.49361276,170.29,170.24,39.18361276]
[1752716998517,5.87302519,170.27,170.24,26.0]
[1752716998694,18.36663795,170.27,170.24,26.0]
[1752716998896,18.36663795,170.27,170.22,12.49361276]
[1752716999107,12.49361276,170.28,170.23,39.18361276]
[1752716999313,12.49361276,170.27,170.23,0.69]
[1752716999499,0.66,170.26,170.21,0.06]
[1752716999700,12.49361276,170.22,170.21,0.06]
[1752716999923,13.15361276,170.22,170.21,0.06]
[1752717000217,13.15361276,170.22,170.14,6.4176]
[1752717000419,6.5297,170.27,170.1,146.2]
[1752717000420,5.87751263,170.14,170.1,146.2]
[1752717000721,13.15361276,170.13,170.08,146.2]
[1752717000920,0.66,170.12,170.04,146.2]
[1752717001120,0.66,170.12,170.05,12.49361276]
[1752717001425,12.49361276,170.1,170.04,158.69361276]
[1752717001648,20.57129422,170.14,170.01,146.2]
[1752717001649,12.49361276,170.07,170.01,146.2]
[1752717001807,0.66,170.06,170.0,4.5]
[1752717002009,0.66,170.06,170.01,0.78]
[1752717002217,0.66,170.06,170.0,4.5]
[1752717002444,18.3756197,170.01,170.0,4.5]
[1752717002596,19.0356197,170.01,170.0,3.78]
[1752717002996,6.54200694,170.01,170.0,7.1]
[1752717003196,19.0356197,170.01,170.0,3.78]
[1752717004227,12.49361276,170.01,170.0,3.78]
[1752717004408,5.87993179,170.07,170.0,4.47]
[1752717004901,12.49361276,170.05,170.03,26.0]
[1752717005100,5.87957018,170.09,170.05,26.0]
[1752717005401,0.66,170.15,170.06,0.69]
[1752717005603,6.6488,170.19,170.1,26.0]
[1752717005604,6.53613115,170.18,170.1,26.0]
[1752717005925,5.87613115,170.18,170.11,26.0]
[1752717006131,5.87613115,170.18,170.1,26.69]
[1752717006132,20.56645903,170.18,170.1,0.69]
[1752717006307,5.87564763,170.2,170.1,0.69]
[1752717006629,5.87564763,170.2,170.07,26.0]
[1752717006630,0.66,170.19,170.09,12.49361276]
[1752717006826,0.66,170.19,170.12,12.49361276]
[1752717007135,0.66,170.19,170.09,12.49361276]
[1752717007429,12.49361276,170.13,170.04,26.69]
[1752717007628,0.66,170.15,170.09,12.49361276]
[1752717007800,13.15361276,170.15,170.09,38.49361276]
[1752717008005,0.66,170.15,170.1,12.49361276]
[1752717008319,13.15361276,170.14,170.07,0.69]
[1752717008625,5.8778581,170.13,170.04,26.0]
[1752717008832,20.57250337,170.13,170.08,12.49361276]
[1752717009134,12.49361276,170.09,170.02,0.69]
[1752717009304,12.49361276,170.08,170.02,12.49361276]
[1752717009500,13.15361276,170.1,170.0,9.66227155]
[1752717009714,69.56611613,170.13,170.03,26.0]
[1752717010008,69.56611613,170.13,170.07,12.49361276]
[1752717010009,57.07250337,170.13,170.07,12.49361276]
[1752717010219,12.49361276,170.12,170.07,12.49361276]
[1752717010431,12.49361276,170.11,170.04,0.69]
[1752717010606,12.49361276,170.05,170.0,3.78]
[1752717010925,12.49361276,170.05,169.87,6.3978]
[1752717010926,12.49361276,170.01,169.9,12.49361276]
[1752717011125,12.49361276,169.99,169.94,26.0]
[1752717011300,36.44,169.99,169.95,12.49361276]
[1752717011512,49.59361276,169.99,169.91,0.89]
[1752717011732,49.59361276,169.99,169.93,12.55361276]
[1752717011911,37.1,169.99,169.93,0.06]
[1752717012111,49.59361276,169.99,169.93,0.06]
[1752717012324,36.44,169.99,169.96,12.49361276]
[1752717012630,36.44,169.99,169.93,0.75]
[1752717012631,42.32269898,169.99,169.95,12.49361276]
[1752717012831,5.88200694,170.01,169.98,12.69027374]
[1752717013038,5.88062334,170.05,170.0,38.49361276]
[1752717013228,5.88062334,170.05,170.04,12.49361276]
[1752717013425,5.88062334,170.05,170.01,0.69]
[1752717013628,5.88062334,170.05,170.03,12.49361276]
[1752717013812,5.88062334,170.05,170.0,26.0]
[1752717014033,6.54062334,170.05,170.01,38.49361276]
[1752717014210,5.88062334,170.05,170.02,12.49361276]
[1752717014416,12.49361276,170.03,169.98,0.19666098]
[1752717014631,12.49361276,169.99,169.98,0.19666098]
[1752717015132,36.36,170.01,169.98,0.19666098]
[1752717015502,36.36,170.01,169.99,12.49361276]
[1752717015927,5.88131506,170.03,170.0,38.49361276]
[1752717016105,42.18027754,170.06,170.0,26.0]
[1752717016311,12.49361276,170.05,170.0,12.49361276]
[1752717016515,18.37458194,170.04,169.98,0.19666098]
[1752717016726,18.37458194,170.04,169.99,12.49361276]
[1752717016932,12.49361276,170.0,169.98,1e-08]
[1752717017134,36.24,169.99,169.93,0.06]
[1752717017316,36.9,169.99,169.93,0.06]
[1752717017521,12.49361276,169.98,169.93,12.55361276]
[1752717017727,12.49361276,169.94,169.93,0.06]
[1752717017932,48.73361276,169.94,169.93,0.06]
[1752717018118,49.39361276,169.94,169.84,0.69]
[1752717018315,12.49361276,169.9,169.84,0.69]
[1752717018630,5.88685465,169.87,169.81,0.69]
[1752717018808,5.88685465,169.87,169.81,12.49361276]
[1752717018809,12.49361276,169.86,169.81,12.49361276]
[1752717019014,20.60399128,169.87,169.72,36.2]
[1752717019015,13.15361276,169.85,169.72,6.4177]
[1752717019230,20.60399128,169.87,169.74,2.38]
[1752717019231,12.49361276,169.75,169.74,2.38]
[1752717019730,0.66,169.75,169.68,42.3920638]
[1752717020033,12.49361276,169.73,169.68,41.7020638]
[1752717020225,12.49361276,169.69,169.61,6.3713246]
[1752717020426,12.49361276,169.7,169.65,2.38]
[1752717020616,36.16,169.73,169.65,2.38]
[1752717020617,42.05173554,169.73,169.65,2.38]
[1752717020817,17.44468397,169.72,169.65,2.38]
[1752717021019,10.0,169.69,169.61,5.6813246]
[1752717021225,12.49361276,169.62,169.61,5.6813246]
[1752717021408,36.12,169.62,169.61,5.6813246]
[1752717021612,36.1,169.65,169.61,5.6813246]
[1752717022123,48.59361276,169.65,169.61,5.6813246]
[1752717022310,36.1,169.65,169.61,5.6813246]
[1752717022512,56.63136325,169.73,169.65,26.0]
[1752717022513,36.1,169.7,169.65,26.0]
[1752717022730,12.49361276,169.71,169.65,26.0]
[1752717023046,18.56428228,169.7,169.65,18.56428228]
[1752717023332,18.56428228,169.66,169.61,5.6813246]
[1752717023509,18.56428228,169.63,169.61,5.6813246]
[1752717023713,0.66,169.65,169.61,5.6813246]
[1752717024037,36.04,169.66,169.61,5.6813246]
[1752717024211,18.56428228,169.69,169.66,26.0]
[1752717024541,60.47675906,169.71,169.68,26.0]
[1752717024726,0.71,169.71,169.68,26.0]
[1752717024924,36.32,169.74,169.68,26.0]
[1752717025234,54.86428228,169.76,169.71,18.56428228]
[1752717025415,18.56428228,169.8,169.74,18.56428228]
[1752717025736,36.32,169.8,169.76,18.56428228]
[1752717025943,0.71,169.86,169.79,18.56428228]
[1752717026116,5.88720122,169.86,169.8,18.56428228]
[1752717026315,5.88720122,169.86,169.82,18.56428228]
[1752717026620,5.88685151,169.88,169.84,18.56428228]